[Event "*** Titled Tuesday Blitz"]
[Site "Chess.com"]
[Date "2020.12.01"]
[Round "6"]
[White "lucachess49"]
[Black "scarabee43"]
[Result "0-1"]
[WhiteElo "2359"]
[BlackElo "2570"]
[TimeControl "180+1"]
[EndTime "11:03:15 PST"]
[Termination "scarabee43 won by resignation"]

1. d4 {[%clk 0:02:59]} 1... Nf6 {[%clk 0:02:59.7]} 2. c4 {[%clk 0:02:55.4]} 2...
e6 {[%clk 0:02:59.8]} 3. Nc3 {[%clk 0:02:52.7]} 3... Bb4 {[%clk 0:02:57.5]} 4.
e3 {[%clk 0:02:42.5]} 4... d5 {[%clk 0:02:51.5]} 5. Ne2 {[%clk 0:02:34.2]} 5...
O-O {[%clk 0:02:50.4]} 6. a3 {[%clk 0:02:33.4]} 6... Be7 {[%clk 0:02:47.4]} 7.
Nf4 {[%clk 0:02:26.5]} 7... dxc4 {[%clk 0:02:41.1]} 8. Bxc4 {[%clk 0:02:23.7]}
8... c5 {[%clk 0:02:40.8]} 9. dxc5 {[%clk 0:02:17.1]} 9... Bxc5 {[%clk
0:02:38.9]} 10. b4 {[%clk 0:02:06.5]} 10... Be7 {[%clk 0:02:34.2]} 11. Bb2
{[%clk 0:02:06.1]} 11... a6 {[%clk 0:02:33.9]} 12. g4 {[%clk 0:01:54.2]} 12...
b5 {[%clk 0:02:31.3]} 13. Bd3 {[%clk 0:01:42]} 13... Bb7 {[%clk 0:02:30.4]} 14.
Rg1 {[%clk 0:01:41.8]} 14... Nfd7 {[%clk 0:01:47.8]} 15. Ne4 {[%clk 0:01:25.5]}
15... Nc6 {[%clk 0:01:45.6]} 16. Bc2 {[%clk 0:00:25.5]} 16... Nde5 {[%clk
0:01:35.6]} 17. Bxe5 {[%clk 0:00:20.4]} 17... Nxe5 {[%clk 0:01:35.3]} 18. g5
{[%clk 0:00:21]} 18... Qxd1+ {[%clk 0:01:25.8]} 19. Kxd1 {[%clk 0:00:18.2]}
19... Rfd8+ {[%clk 0:01:24.2]} 20. Ke2 {[%clk 0:00:17.4]} 20... Rac8 {[%clk
0:01:24.9]} 21. Rac1 {[%clk 0:00:16.6]} 21... Rxc2+ {[%clk 0:01:24.1]} 22. Rxc2
{[%clk 0:00:17.5]} 22... Bxe4 {[%clk 0:01:24.5]} 23. Rc7 {[%clk 0:00:18.4]}
23... Bf3+ {[%clk 0:01:24.3]} 24. Ke1 {[%clk 0:00:16.3]} 0-1

[Event "*** Titled Tuesday Blitz"]
[Site "Chess.com"]
[Date "2020.12.01"]
[Round "6"]
[White "TheCavemanChesss"]
[Black "fyall777"]
[Result "0-1"]
[WhiteElo "2467"]
[BlackElo "2298"]
[TimeControl "180+1"]
[EndTime "11:03:18 PST"]
[Termination "fyall777 won by resignation"]

1. e4 {[%clk 0:03:00.9]} 1... e5 {[%clk 0:02:58.5]} 2. Nf3 {[%clk 0:03:00.5]}
2... Nf6 {[%clk 0:02:58.2]} 3. d4 {[%clk 0:02:58.9]} 3... exd4 {[%clk
0:02:56.7]} 4. e5 {[%clk 0:02:58]} 4... Ne4 {[%clk 0:02:56.9]} 5. Qxd4 {[%clk
0:02:56.2]} 5... Nc5 {[%clk 0:02:56.6]} 6. Nc3 {[%clk 0:02:55.5]} 6... Nc6
{[%clk 0:02:54.2]} 7. Qf4 {[%clk 0:02:37.3]} 7... Ne6 {[%clk 0:02:53.8]} 8. Qe4
{[%clk 0:02:29.1]} 8... d6 {[%clk 0:02:47.9]} 9. Bb5 {[%clk 0:02:24.2]} 9... Bd7
{[%clk 0:02:47]} 10. O-O {[%clk 0:02:13.9]} 10... a6 {[%clk 0:02:41.9]} 11. Bc4
{[%clk 0:01:57.8]} 11... dxe5 {[%clk 0:02:41.7]} 12. Nxe5 {[%clk 0:01:55.2]}
12... Nxe5 {[%clk 0:02:41.5]} 13. Qxe5 {[%clk 0:01:55.2]} 13... Bd6 {[%clk
0:02:41.6]} 14. Qe4 {[%clk 0:01:43.5]} 14... O-O {[%clk 0:02:38.2]} 15. Be3
{[%clk 0:01:16.6]} 15... Re8 {[%clk 0:02:09]} 16. Rad1 {[%clk 0:01:09.7]} 16...
Qf6 {[%clk 0:02:01.6]} 17. h4 {[%clk 0:00:32.1]} 17... b5 {[%clk 0:01:45.8]} 18.
Bd3 {[%clk 0:00:30.2]} 18... Nf8 {[%clk 0:01:39.1]} 19. Bg5 {[%clk 0:00:16.1]}
19... Rxe4 {[%clk 0:01:33]} 20. Bxe4 {[%clk 0:00:12.7]} 20... Qe5 {[%clk
0:01:30.2]} 21. f4 {[%clk 0:00:12.9]} 21... Qc5+ {[%clk 0:01:29.6]} 22. Kh1
{[%clk 0:00:09.9]} 22... Re8 {[%clk 0:01:29.2]} 23. Rfe1 {[%clk 0:00:07.3]}
23... h6 {[%clk 0:01:25.6]} 0-1

[Event "*** Titled Tuesday Blitz"]
[Site "Chess.com"]
[Date "2020.12.01"]
[Round "6"]
[White "Omk124"]
[Black "woodhy"]
[Result "0-1"]
[WhiteElo "2323"]
[BlackElo "2457"]
[TimeControl "180+1"]
[EndTime "11:03:19 PST"]
[Termination "woodhy won by resignation"]

1. e4 {[%clk 0:03:00.9]} 1... e6 {[%clk 0:02:58.6]} 2. d4 {[%clk 0:03:00.8]}
2... d5 {[%clk 0:02:57.6]} 3. Nd2 {[%clk 0:03:01.2]} 3... c5 {[%clk 0:02:57.4]}
4. exd5 {[%clk 0:03:01.4]} 4... exd5 {[%clk 0:02:58.3]} 5. Ngf3 {[%clk
0:03:01.5]} 5... Nc6 {[%clk 0:02:57.4]} 6. Bb5 {[%clk 0:03:01.5]} 6... Bd6
{[%clk 0:02:53]} 7. dxc5 {[%clk 0:03:00.3]} 7... Bxc5 {[%clk 0:02:53.9]} 8. Kf1
{[%clk 0:03:00.9]} 8... Ne7 {[%clk 0:02:53.3]} 9. Nb3 {[%clk 0:03:00.9]} 9...
Bd6 {[%clk 0:02:46.5]} 10. g3 {[%clk 0:02:54.8]} 10... Bh3+ {[%clk 0:02:32.1]}
11. Kg1 {[%clk 0:02:54.8]} 11... Qb6 {[%clk 0:02:31.6]} 12. Bd3 {[%clk
0:02:51.3]} 12... a5 {[%clk 0:02:19.8]} 13. Be3 {[%clk 0:02:51.2]} 13... Qc7
{[%clk 0:02:17.4]} 14. Ng5 {[%clk 0:02:51.4]} 14... Be6 {[%clk 0:01:56.1]} 15.
Nxe6 {[%clk 0:02:46.1]} 15... fxe6 {[%clk 0:01:57]} 16. Qh5+ {[%clk 0:02:46.5]}
16... g6 {[%clk 0:01:48.8]} 17. Qg4 {[%clk 0:02:41.6]} 17... Nf5 {[%clk
0:01:46.7]} 18. Nd4 {[%clk 0:02:40.1]} 18... Ncxd4 {[%clk 0:01:44]} 19. Bxd4
{[%clk 0:02:39.4]} 19... O-O {[%clk 0:01:43.9]} 20. Bxf5 {[%clk 0:02:31.3]}
20... Rxf5 {[%clk 0:01:40.5]} 21. c3 {[%clk 0:02:29.4]} 21... Raf8 {[%clk
0:01:28.6]} 22. Kg2 {[%clk 0:02:29.3]} 22... e5 {[%clk 0:01:24]} 23. Be3 {[%clk
0:02:27.9]} 23... Qc6 {[%clk 0:01:24.1]} 24. Bh6 {[%clk 0:01:36.7]} 24... Rxf2+
{[%clk 0:01:21.8]} 25. Kh3 {[%clk 0:01:36.3]} 25... R8f5 {[%clk 0:01:20.5]} 26.
Bg5 {[%clk 0:01:35.5]} 26... h5 {[%clk 0:01:06.6]} 27. Qh4 {[%clk 0:01:04.3]}
27... Qd7 {[%clk 0:00:43.2]} 28. g4 {[%clk 0:01:03.2]} 28... R5f3+ {[%clk
0:00:42.6]} 0-1

[Event "*** Titled Tuesday Blitz"]
[Site "Chess.com"]
[Date "2020.12.01"]
[Round "6"]
[White "Eliwood44"]
[Black "XDPS"]
[Result "0-1"]
[WhiteElo "2476"]
[BlackElo "2770"]
[TimeControl "180+1"]
[EndTime "11:03:23 PST"]
[Termination "XDPS won by resignation"]

1. d4 {[%clk 0:03:00.9]} 1... d5 {[%clk 0:02:59.3]} 2. c4 {[%clk 0:02:59.2]}
2... e6 {[%clk 0:02:59.6]} 3. Nc3 {[%clk 0:02:52.5]} 3... Nf6 {[%clk 0:02:59.5]}
4. cxd5 {[%clk 0:02:52.2]} 4... exd5 {[%clk 0:03:00.4]} 5. Bg5 {[%clk
0:02:51.9]} 5... c6 {[%clk 0:03:00.4]} 6. e3 {[%clk 0:02:51]} 6... h6 {[%clk
0:03:00.3]} 7. Bh4 {[%clk 0:02:50]} 7... Bd6 {[%clk 0:02:59.9]} 8. Nf3 {[%clk
0:02:48.4]} 8... O-O {[%clk 0:02:59.6]} 9. Bd3 {[%clk 0:02:47.8]} 9... Re8
{[%clk 0:02:55.4]} 10. Qc2 {[%clk 0:02:35.8]} 10... Be6 {[%clk 0:02:54.2]} 11.
h3 {[%clk 0:02:29.8]} 11... Nbd7 {[%clk 0:02:53.7]} 12. g4 {[%clk 0:02:25.6]}
12... b5 {[%clk 0:02:51.8]} 13. g5 {[%clk 0:02:19.3]} 13... hxg5 {[%clk
0:02:50.2]} 14. Bxg5 {[%clk 0:02:18.2]} 14... a5 {[%clk 0:02:41.9]} 15. Rg1
{[%clk 0:02:10.2]} 15... a4 {[%clk 0:02:39.1]} 16. Bh6 {[%clk 0:02:03.5]} 16...
Bf8 {[%clk 0:02:27.8]} 17. Ne5 {[%clk 0:01:38.1]} 17... Nxe5 {[%clk 0:02:19.4]}
18. dxe5 {[%clk 0:01:39]} 18... Nd7 {[%clk 0:02:19.8]} 19. f4 {[%clk 0:01:33.6]}
19... Qh4+ {[%clk 0:02:19.3]} 20. Qf2 {[%clk 0:01:32.2]} 20... Qxh6 {[%clk
0:02:20.2]} 21. O-O-O {[%clk 0:01:22.6]} 21... Nc5 {[%clk 0:01:52.6]} 22. Bc2
{[%clk 0:01:15]} 22... b4 {[%clk 0:01:50.5]} 23. Ne2 {[%clk 0:01:14.2]} 23... b3
{[%clk 0:01:51.1]} 24. Bb1 {[%clk 0:01:11.2]} 24... bxa2 {[%clk 0:01:51.4]} 25.
Bxa2 {[%clk 0:01:10.6]} 25... Nb3+ {[%clk 0:01:47.8]} 26. Bxb3 {[%clk
0:01:05.6]} 26... axb3 {[%clk 0:01:48.7]} 27. Nd4 {[%clk 0:01:06]} 27... c5
{[%clk 0:01:48.4]} 28. Nxb3 {[%clk 0:00:50.5]} 28... d4 {[%clk 0:01:45.8]} 29.
Nd2 {[%clk 0:00:48.7]} 29... Ra1+ {[%clk 0:01:28.3]} 30. Kc2 {[%clk 0:00:42]}
30... dxe3 {[%clk 0:01:28.1]} 31. Qxe3 {[%clk 0:00:40.6]} 31... Bf5+ {[%clk
0:01:28.3]} 32. Kc3 {[%clk 0:00:36.7]} 32... Qb6 {[%clk 0:01:27]} 0-1

[Event "*** Titled Tuesday Blitz"]
[Site "Chess.com"]
[Date "2020.12.01"]
[Round "6"]
[White "aleksey1203borisovi4"]
[Black "MillyNeuf"]
[Result "1-0"]
[WhiteElo "2467"]
[BlackElo "2323"]
[TimeControl "180+1"]
[EndTime "11:03:24 PST"]
[Termination "aleksey1203borisovi4 won by resignation"]

1. g3 {[%clk 0:03:00.5]} 1... d5 {[%clk 0:02:57.5]} 2. Bg2 {[%clk 0:03:01.4]}
2... Nf6 {[%clk 0:02:57.5]} 3. d3 {[%clk 0:02:59.1]} 3... c5 {[%clk 0:02:51.6]}
4. Nc3 {[%clk 0:02:50.7]} 4... Nc6 {[%clk 0:02:47.5]} 5. Bg5 {[%clk 0:02:47.4]}
5... e6 {[%clk 0:02:45.8]} 6. e4 {[%clk 0:02:44.5]} 6... d4 {[%clk 0:02:39.5]}
7. Nce2 {[%clk 0:02:42]} 7... Be7 {[%clk 0:02:38.9]} 8. Nf3 {[%clk 0:02:39.3]}
8... h6 {[%clk 0:02:37.3]} 9. Bd2 {[%clk 0:02:36.8]} 9... e5 {[%clk 0:02:29.4]}
10. O-O {[%clk 0:02:34.4]} 10... O-O {[%clk 0:02:27.2]} 11. h3 {[%clk
0:02:31.4]} 11... Be6 {[%clk 0:02:24.3]} 12. Nh2 {[%clk 0:02:26.2]} 12... Nd7
{[%clk 0:02:18.4]} 13. f4 {[%clk 0:02:19.5]} 13... f5 {[%clk 0:02:12.4]} 14.
fxe5 {[%clk 0:02:14.2]} 14... Ndxe5 {[%clk 0:02:08.1]} 15. Nf4 {[%clk
0:02:12.3]} 15... Bd7 {[%clk 0:01:48.9]} 16. exf5 {[%clk 0:02:12.2]} 16... Bxf5
{[%clk 0:01:49.7]} 17. Qe2 {[%clk 0:01:58.6]} 17... Bd6 {[%clk 0:01:45.7]} 18.
Nf3 {[%clk 0:01:54.2]} 18... Nxf3+ {[%clk 0:01:42.3]} 19. Qxf3 {[%clk
0:01:49.2]} 19... Bh7 {[%clk 0:01:16.6]} 20. Rae1 {[%clk 0:01:44.2]} 20... Qd7
{[%clk 0:01:08.8]} 21. Qd5+ {[%clk 0:01:39.5]} 21... Kh8 {[%clk 0:01:07.6]} 22.
Re6 {[%clk 0:01:34.9]} 22... Rad8 {[%clk 0:00:56.1]} 23. a3 {[%clk 0:01:34.9]}
23... Bg8 {[%clk 0:00:48.7]} 24. Ng6+ {[%clk 0:01:27.8]} 24... Kh7 {[%clk
0:00:49]} 25. Nxf8+ {[%clk 0:01:23.6]} 25... Bxf8 {[%clk 0:00:33.8]} 26. Qxd7
{[%clk 0:01:24.5]} 26... Rxd7 {[%clk 0:00:32.5]} 27. Be4+ {[%clk 0:01:14.3]}
27... Kh8 {[%clk 0:00:32.2]} 28. Rxf8 {[%clk 0:01:13.5]} 1-0

[Event "*** Titled Tuesday Blitz"]
[Site "Chess.com"]
[Date "2020.12.01"]
[Round "6"]
[White "DinaBelenkaya"]
[Black "OlifantCZ"]
[Result "0-1"]
[WhiteElo "2383"]
[BlackElo "2241"]
[TimeControl "180+1"]
[EndTime "11:03:24 PST"]
[Termination "OlifantCZ won by resignation"]

1. e4 {[%clk 0:03:00.9]} 1... e6 {[%clk 0:02:59.6]} 2. Qe2 {[%clk 0:03:00.3]}
2... c5 {[%clk 0:02:58.5]} 3. g3 {[%clk 0:02:57.3]} 3... Nc6 {[%clk 0:02:57.9]}
4. Bg2 {[%clk 0:02:57.3]} 4... Nf6 {[%clk 0:02:57.3]} 5. Nf3 {[%clk 0:02:57.4]}
5... d6 {[%clk 0:02:56.6]} 6. c3 {[%clk 0:02:56.6]} 6... Be7 {[%clk 0:02:55.5]}
7. d4 {[%clk 0:02:56.7]} 7... cxd4 {[%clk 0:02:49.7]} 8. cxd4 {[%clk 0:02:57.6]}
8... d5 {[%clk 0:02:48.5]} 9. e5 {[%clk 0:02:56.8]} 9... Ne4 {[%clk 0:02:48.1]}
10. O-O {[%clk 0:02:54.3]} 10... O-O {[%clk 0:02:47.5]} 11. Be3 {[%clk
0:02:54.2]} 11... Qa5 {[%clk 0:02:38]} 12. Nbd2 {[%clk 0:02:36.5]} 12... Nxd2
{[%clk 0:02:32.9]} 13. Bxd2 {[%clk 0:02:30.2]} 13... Qb6 {[%clk 0:02:32.6]} 14.
Be3 {[%clk 0:02:24.8]} 14... Bd7 {[%clk 0:02:31.3]} 15. Rad1 {[%clk 0:02:07.3]}
15... Rac8 {[%clk 0:02:29.9]} 16. h4 {[%clk 0:02:03.2]} 16... Nb4 {[%clk
0:02:29.2]} 17. a3 {[%clk 0:01:54.9]} 17... Bb5 {[%clk 0:02:26.1]} 18. Qe1
{[%clk 0:01:55]} 18... Bxf1 {[%clk 0:02:25.2]} 19. Bxf1 {[%clk 0:01:55]} 19...
Nc2 {[%clk 0:02:25.1]} 20. Qd2 {[%clk 0:01:55.3]} 20... Nxe3 {[%clk 0:02:19.1]}
21. Qxe3 {[%clk 0:01:56.2]} 21... Qxb2 {[%clk 0:02:17.5]} 22. Bd3 {[%clk
0:01:53.8]} 22... Rc3 {[%clk 0:02:12.6]} 23. Ng5 {[%clk 0:01:38.3]} 23... Bxg5
{[%clk 0:02:09.3]} 24. hxg5 {[%clk 0:01:39.2]} 24... Qxa3 {[%clk 0:02:03.5]} 25.
Kg2 {[%clk 0:01:38.7]} 25... Rfc8 {[%clk 0:02:00.7]} 26. Qf3 {[%clk 0:01:36.6]}
26... Rxd3 {[%clk 0:01:53.7]} 27. Rxd3 {[%clk 0:01:35.1]} 27... Qa4 {[%clk
0:01:50.1]} 28. Qh5 {[%clk 0:01:27.8]} 28... Qc4 {[%clk 0:01:43.1]} 29. Rf3
{[%clk 0:01:26.8]} 29... Rc7 {[%clk 0:01:40.4]} 30. Rf4 {[%clk 0:01:23.5]} 30...
a5 {[%clk 0:01:37.5]} 31. Rh4 {[%clk 0:01:23.4]} 31... Qd3 {[%clk 0:01:27.7]}
32. g6 {[%clk 0:00:54.9]} 32... fxg6 {[%clk 0:01:26.1]} 33. Qe2 {[%clk
0:00:55.5]} 33... Qxe2 {[%clk 0:01:25.2]} 0-1

[Event "*** Titled Tuesday Blitz"]
[Site "Chess.com"]
[Date "2020.12.01"]
[Round "6"]
[White "Rainmond"]
[Black "shnitez"]
[Result "1-0"]
[WhiteElo "2802"]
[BlackElo "2578"]
[TimeControl "180+1"]
[EndTime "11:03:26 PST"]
[Termination "Rainmond won by checkmate"]

1. Nf3 {[%clk 0:03:00.9]} 1... Nf6 {[%clk 0:02:59.6]} 2. b4 {[%clk 0:03:00.4]}
2... d5 {[%clk 0:02:57.2]} 3. e3 {[%clk 0:02:59.4]} 3... Bf5 {[%clk 0:02:56]} 4.
c4 {[%clk 0:02:57.5]} 4... e6 {[%clk 0:02:53.5]} 5. Qb3 {[%clk 0:02:56.1]} 5...
h6 {[%clk 0:02:45.3]} 6. Bb2 {[%clk 0:02:55.3]} 6... Be7 {[%clk 0:02:42.9]} 7.
Nc3 {[%clk 0:02:54.4]} 7... O-O {[%clk 0:02:35.2]} 8. Rc1 {[%clk 0:02:47.1]}
8... c6 {[%clk 0:02:23.7]} 9. Be2 {[%clk 0:02:34.8]} 9... Nbd7 {[%clk
0:02:19.4]} 10. O-O {[%clk 0:02:28.6]} 10... a5 {[%clk 0:02:17.8]} 11. a3 {[%clk
0:02:28.4]} 11... Ne4 {[%clk 0:02:06.2]} 12. d4 {[%clk 0:02:03.5]} 12... axb4
{[%clk 0:01:17.5]} 13. axb4 {[%clk 0:02:02.1]} 13... dxc4 {[%clk 0:01:00.8]} 14.
Bxc4 {[%clk 0:01:59.9]} 14... Qb6 {[%clk 0:00:45.9]} 15. Nxe4 {[%clk 0:01:54.4]}
15... Bxe4 {[%clk 0:00:44.9]} 16. Bxe6 {[%clk 0:01:54.2]} 16... Bxf3 {[%clk
0:00:36.8]} 17. Bxd7 {[%clk 0:01:53.2]} 17... Bd5 {[%clk 0:00:36.6]} 18. Qc2
{[%clk 0:01:51]} 18... Ra2 {[%clk 0:00:29.1]} 19. Qb1 {[%clk 0:01:46.8]} 19...
Qxb4 {[%clk 0:00:25.3]} 20. Bc3 {[%clk 0:01:46.3]} 20... Qxb1 {[%clk 0:00:25]}
21. Rxb1 {[%clk 0:01:47.2]} 21... b5 {[%clk 0:00:23.5]} 22. e4 {[%clk
0:01:47.4]} 22... Bxe4 {[%clk 0:00:23.1]} 23. Rbe1 {[%clk 0:01:46.8]} 23... Rd8
{[%clk 0:00:13.8]} 24. Bh3 {[%clk 0:01:45.7]} 24... Bd3 {[%clk 0:00:12.6]} 25.
Rxe7 {[%clk 0:01:43.3]} 25... Bxf1 {[%clk 0:00:13.1]} 26. Kxf1 {[%clk
0:01:43.3]} 26... Rc2 {[%clk 0:00:06.9]} 27. Re3 {[%clk 0:01:42.7]} 27... Ra8
{[%clk 0:00:03.8]} 28. Bf5 {[%clk 0:01:41.4]} 28... Rc1+ {[%clk 0:00:02.5]} 29.
Ke2 {[%clk 0:01:41.4]} 29... Ra3 {[%clk 0:00:02.9]} 30. Re8# {[%clk 0:01:40.3]}
1-0

[Event "*** Titled Tuesday Blitz"]
[Site "Chess.com"]
[Date "2020.12.01"]
[Round "6"]
[White "Rytenko_V"]
[Black "Blitzstream"]
[Result "0-1"]
[WhiteElo "2535"]
[BlackElo "2768"]
[TimeControl "180+1"]
[EndTime "11:03:26 PST"]
[Termination "Blitzstream won by resignation"]

1. e4 {[%clk 0:03:00.9]} 1... d5 {[%clk 0:03:00]} 2. exd5 {[%clk 0:03:00.3]}
2... Qxd5 {[%clk 0:03:00.9]} 3. d3 {[%clk 0:02:59.5]} 3... Nc6 {[%clk
0:02:59.7]} 4. Nc3 {[%clk 0:03:00.1]} 4... Qd6 {[%clk 0:02:55.7]} 5. Nf3 {[%clk
0:03:00.4]} 5... Bg4 {[%clk 0:02:55.3]} 6. h3 {[%clk 0:02:59.6]} 6... Bh5 {[%clk
0:02:55.1]} 7. g4 {[%clk 0:02:59.8]} 7... Bg6 {[%clk 0:02:55.4]} 8. Bg2 {[%clk
0:03:00.4]} 8... Nf6 {[%clk 0:02:54.4]} 9. Qe2 {[%clk 0:03:00.3]} 9... O-O-O
{[%clk 0:02:51.2]} 10. Be3 {[%clk 0:02:59.2]} 10... e6 {[%clk 0:02:45.4]} 11.
O-O-O {[%clk 0:02:57.9]} 11... Nd5 {[%clk 0:02:37.5]} 12. Nxd5 {[%clk
0:02:55.4]} 12... exd5 {[%clk 0:02:37.3]} 13. Nd4 {[%clk 0:02:51.7]} 13... Nxd4
{[%clk 0:02:11.4]} 14. Bxd4 {[%clk 0:02:51]} 14... Be7 {[%clk 0:02:04]} 15. Kb1
{[%clk 0:02:36.4]} 15... Rhe8 {[%clk 0:02:03.5]} 16. Qd2 {[%clk 0:02:30.1]}
16... Bf6 {[%clk 0:01:53.6]} 17. Bxf6 {[%clk 0:02:20.2]} 17... Qxf6 {[%clk
0:01:53.7]} 18. f4 {[%clk 0:02:20.8]} 18... h6 {[%clk 0:01:52.9]} 19. f5 {[%clk
0:02:21]} 19... Bh7 {[%clk 0:01:53.2]} 20. Qa5 {[%clk 0:02:14.9]} 20... Qb6
{[%clk 0:01:48.8]} 21. Qxb6 {[%clk 0:02:14.5]} 21... axb6 {[%clk 0:01:49.7]} 22.
Rde1 {[%clk 0:02:13.7]} 22... c6 {[%clk 0:01:45.8]} 23. Kc1 {[%clk 0:02:12.7]}
23... f6 {[%clk 0:01:45.8]} 24. Kd2 {[%clk 0:02:11.2]} 24... Bg8 {[%clk
0:01:46]} 25. Rxe8 {[%clk 0:02:09]} 25... Rxe8 {[%clk 0:01:46.1]} 26. d4 {[%clk
0:02:09.5]} 26... Kc7 {[%clk 0:01:44.9]} 27. Re1 {[%clk 0:02:09]} 27... Rxe1
{[%clk 0:01:44.5]} 28. Kxe1 {[%clk 0:02:09.9]} 28... Kd6 {[%clk 0:01:44]} 29.
Kd2 {[%clk 0:02:09.8]} 29... c5 {[%clk 0:01:43.9]} 30. Ke3 {[%clk 0:02:10.1]}
30... Bf7 {[%clk 0:01:43.3]} 31. Bf1 {[%clk 0:02:06.7]} 31... Be8 {[%clk
0:01:42.6]} 32. Bd3 {[%clk 0:02:05.7]} 32... Bc6 {[%clk 0:01:39.5]} 33. c3
{[%clk 0:02:04.9]} 33... Bd7 {[%clk 0:01:37.7]} 34. Kf4 {[%clk 0:02:04.5]} 34...
Be8 {[%clk 0:01:35.5]} 35. Bc2 {[%clk 0:02:01.9]} 35... Bb5 {[%clk 0:01:35.2]}
36. Bb3 {[%clk 0:02:01.1]} 36... Bf1 {[%clk 0:01:17.3]} 37. h4 {[%clk
0:01:55.8]} 37... Bd3 {[%clk 0:01:17.3]} 38. Ba4 {[%clk 0:01:48.7]} 38... Bc4
{[%clk 0:01:03.4]} 39. Bb3 {[%clk 0:01:42.8]} 39... Bxb3 {[%clk 0:00:56.4]} 40.
axb3 {[%clk 0:01:42.9]} 40... cxd4 {[%clk 0:00:56.5]} 41. cxd4 {[%clk
0:01:43.4]} 41... Kc6 {[%clk 0:00:57]} 42. g5 {[%clk 0:01:42.1]} 42... h5 {[%clk
0:00:54.7]} 43. Ke3 {[%clk 0:01:32]} 43... Kb5 {[%clk 0:00:54.3]} 44. Kd3 {[%clk
0:01:31.6]} 44... Kb4 {[%clk 0:00:54.7]} 45. Kd2 {[%clk 0:01:32]} 45... Kxb3
{[%clk 0:00:54.3]} 0-1

[Event "*** Titled Tuesday Blitz"]
[Site "Chess.com"]
[Date "2020.12.01"]
[Round "6"]
[White "arminmusovic"]
[Black "Bodnar_Mykola"]
[Result "0-1"]
[WhiteElo "2519"]
[BlackElo "2388"]
[TimeControl "180+1"]
[EndTime "11:03:30 PST"]
[Termination "Bodnar_Mykola won by resignation"]

1. a3 {[%clk 0:03:00.9]} 1... e5 {[%clk 0:02:58.1]} 2. Nc3 {[%clk 0:03:00.7]}
2... Nc6 {[%clk 0:02:56]} 3. e4 {[%clk 0:03:00.9]} 3... g6 {[%clk 0:02:56]} 4.
Nf3 {[%clk 0:03:00.9]} 4... Bg7 {[%clk 0:02:56.5]} 5. Bc4 {[%clk 0:03:01.4]}
5... Nge7 {[%clk 0:02:55.7]} 6. Ba2 {[%clk 0:03:02.1]} 6... O-O {[%clk
0:02:55.6]} 7. d3 {[%clk 0:03:02.7]} 7... d6 {[%clk 0:02:53.2]} 8. h3 {[%clk
0:03:03.3]} 8... h6 {[%clk 0:02:53]} 9. O-O {[%clk 0:03:03.7]} 9... Kh7 {[%clk
0:02:52.5]} 10. Nh2 {[%clk 0:03:03.4]} 10... f5 {[%clk 0:02:52.6]} 11. f3 {[%clk
0:03:04]} 11... f4 {[%clk 0:02:51.2]} 12. Ne2 {[%clk 0:03:03.4]} 12... g5 {[%clk
0:02:40.9]} 13. c3 {[%clk 0:03:02.9]} 13... h5 {[%clk 0:02:41.2]} 14. d4 {[%clk
0:03:02.8]} 14... Ng6 {[%clk 0:02:41.4]} 15. Bd2 {[%clk 0:02:35]} 15... exd4
{[%clk 0:02:36.7]} 16. cxd4 {[%clk 0:02:35.9]} 16... Nxd4 {[%clk 0:02:36.7]} 17.
Bc3 {[%clk 0:02:32.4]} 17... Nxe2+ {[%clk 0:02:34.4]} 18. Qxe2 {[%clk
0:02:33.3]} 18... Bxc3 {[%clk 0:02:34.7]} 19. bxc3 {[%clk 0:02:34.2]} 19... Ne5
{[%clk 0:02:34.1]} 20. Rab1 {[%clk 0:02:30.2]} 20... b6 {[%clk 0:02:31.8]} 21.
Rfd1 {[%clk 0:02:12.3]} 21... Qf6 {[%clk 0:02:28.2]} 22. Bd5 {[%clk 0:01:58.6]}
22... Rb8 {[%clk 0:02:28]} 23. Qb5 {[%clk 0:01:55.2]} 23... a5 {[%clk
0:02:10.9]} 24. Rb2 {[%clk 0:01:35.8]} 24... Bd7 {[%clk 0:02:10.6]} 25. Qf1
{[%clk 0:01:29.3]} 25... Rbe8 {[%clk 0:02:10]} 26. Kh1 {[%clk 0:01:25]} 26...
Re7 {[%clk 0:02:10]} 27. Rbd2 {[%clk 0:01:23.2]} 27... Rg7 {[%clk 0:02:09.6]}
28. Qa6 {[%clk 0:01:22.2]} 28... g4 {[%clk 0:02:06.4]} 29. Qa7 {[%clk
0:01:09.5]} 29... gxf3 {[%clk 0:01:56.4]} 30. Qxc7 {[%clk 0:01:02.4]} 30... Bxh3
{[%clk 0:01:55.3]} 31. Qxg7+ {[%clk 0:00:56]} 31... Qxg7 {[%clk 0:01:54.8]} 32.
gxh3 {[%clk 0:00:56.9]} 32... Rf6 {[%clk 0:01:53.1]} 33. Ba2 {[%clk 0:00:50.1]}
33... Rg6 {[%clk 0:01:49.9]} 34. Bb1 {[%clk 0:00:43.3]} 34... Rg2 {[%clk
0:01:46]} 35. Nxf3 {[%clk 0:00:36.3]} 35... Rxd2 {[%clk 0:01:44.3]} 36. Nxd2
{[%clk 0:00:30.9]} 36... Qg3 {[%clk 0:01:44.6]} 37. h4 {[%clk 0:00:20.6]} 37...
Qxh4+ {[%clk 0:01:43.3]} 38. Kg2 {[%clk 0:00:20.6]} 38... Qg4+ {[%clk
0:01:44.2]} 39. Kf1 {[%clk 0:00:20.6]} 39... Qxd1+ {[%clk 0:01:45.1]} 40. Kf2
{[%clk 0:00:20.5]} 40... Qxd2+ {[%clk 0:01:45.5]} 41. Kg1 {[%clk 0:00:21.4]}
41... Qc1+ {[%clk 0:01:45.8]} 42. Kh2 {[%clk 0:00:22.3]} 42... Qxb1 {[%clk
0:01:46.7]} 43. Kh3 {[%clk 0:00:23.2]} 43... Qxe4 {[%clk 0:01:47.3]} 44. Kh4
{[%clk 0:00:24.1]} 0-1

[Event "*** Titled Tuesday Blitz"]
[Site "Chess.com"]
[Date "2020.12.01"]
[Round "6"]
[White "cstevens1"]
[Black "Gerasimenyuk_Miha"]
[Result "0-1"]
[WhiteElo "2646"]
[BlackElo "2424"]
[TimeControl "180+1"]
[EndTime "11:03:33 PST"]
[Termination "Gerasimenyuk_Miha won on time"]

1. e4 {[%clk 0:02:59.8]} 1... d5 {[%clk 0:02:59.7]} 2. exd5 {[%clk 0:02:59]}
2... Qxd5 {[%clk 0:02:59.9]} 3. Nc3 {[%clk 0:02:59.2]} 3... Qa5 {[%clk
0:03:00.2]} 4. Nf3 {[%clk 0:02:59.1]} 4... Nf6 {[%clk 0:03:00.8]} 5. Bc4 {[%clk
0:02:58.4]} 5... Nc6 {[%clk 0:03:01.2]} 6. O-O {[%clk 0:02:58]} 6... Bg4 {[%clk
0:03:01.3]} 7. h3 {[%clk 0:02:57.4]} 7... h5 {[%clk 0:02:58.7]} 8. Re1 {[%clk
0:02:47.9]} 8... e6 {[%clk 0:02:57.9]} 9. Bb5 {[%clk 0:02:25.5]} 9... O-O-O
{[%clk 0:02:56.4]} 10. hxg4 {[%clk 0:01:53.4]} 10... hxg4 {[%clk 0:02:54.7]} 11.
Bxc6 {[%clk 0:01:53.8]} 11... bxc6 {[%clk 0:02:55.3]} 12. Re5 {[%clk 0:01:36.3]}
12... Bc5 {[%clk 0:02:41.7]} 13. b4 {[%clk 0:01:02.3]} 13... Qxb4 {[%clk
0:02:37.3]} 14. Rb1 {[%clk 0:01:00.3]} 14... Qc4 {[%clk 0:02:08.6]} 15. d3
{[%clk 0:00:33.8]} 15... Qxc3 {[%clk 0:02:07.1]} 16. Bd2 {[%clk 0:00:34.1]}
16... Qa3 {[%clk 0:02:02.6]} 17. Rb3 {[%clk 0:00:34.4]} 17... g3 {[%clk
0:01:46.9]} 18. d4 {[%clk 0:00:14.6]} 18... Bxd4 {[%clk 0:01:21.8]} 19. Nxd4
{[%clk 0:00:12.8]} 19... gxf2+ {[%clk 0:01:20.8]} 20. Kxf2 {[%clk 0:00:12.3]}
20... Qd6 {[%clk 0:01:20.5]} 21. Nf3 {[%clk 0:00:07.9]} 21... Ng4+ {[%clk
0:01:18.5]} 0-1